Workbook

Sheet 2022 PBRIP SWEEPSTAKES RESULTS
C1: 2022 PBRIP SWEEPSTAKES (unofficial results)
A2: DRAW # | B2: BACK # | C2: HORSE | D2: TX | E2: FUT | F2: RIDER | G2: TIME | H2: EARNINGS | I2: TX BRED | J2: FUTURITY | K2: Total
A3: 83 | B3: 1199 | C3: DANCIN FOR FAME | F3: CLARK; AMANDA | G3: 16.518 | H3: 2908.8 | K3: =SUM(H3:J3) -> 2908.8
A4: 2 | B4: 2264 | C4: HINDSIGHT | D4: TX | E4: FUT | F4: JOHNSON; BRITTANI | G4: 16.765 | H4: 2424 | I4: 1250 | J4: 3180 | K4: =SUM(H4:J4) -> 6854
A5: 79 | B5: 1833 | C5: MOONLIGHT JAZZ | F5: MCAULEY; SUMMER | G5: 16.771 | H5: 1939.2 | K5: =SUM(H5:J5) -> 1939.2
A6: 60 | B6: 1116 | C6: OSCAR DE LA BULLY | F6: MCCORNACK; TANNA R | G6: 16.857 | H6: 1454.4 | K6: =SUM(H6:J6) -> 1454.4
A7: 62 | B7: 1398 | C7: GUYKO | D7: TX | F7: PIERSON; BRITTANY | G7: 16.875 | H7: 969.6 | I7: 1000 | K7: =SUM(H7:J7) -> 1969.6
A8: 50 | B8: 2270 | C8: CASINO PERKS | F8: GROVES; JOSEY | G8: 16.905
A9: 42 | B9: 2261 | C9: MIA BUGS KID | F9: HARRINGTON; WILL | G9: 16.959
A10: 48 | B10: 1131 | C10: SMART WITH CASH | D10: TX | F10: TYRER; MIRANDA | G10: 17.006 | I10: 750 | K10: =SUM(I10:J10) -> 750
A11: 30 | B11: 2101 | C11: THE HALO EFFECT | F11: ECKERMANN; SHERI | G11: 17.062 | H11: 2724 | K11: =SUM(H11:J11) -> 2724
A12: 32 | B12: 1418 | C12: EPIC STREAKER | D12: TX | F12: HOOPER; BRANDY ROBINSON | G12: 17.065 | H12: 2270 | I12: 550 | K12: =SUM(H12:J12) -> 2820
A13: 6 | B13: 1820 | C13: KICKINTHEBHROUTTAYA | F13: HOLLOWAY; MINDY J | G13: 17.068 | H13: 1816 | K13: =SUM(H13:J13) -> 1816
A14: 75 | B14: 1165 | C14: DASH OF HOPE | D14: TX | F14: CLARY; JAYLAN R | G14: 17.086 | H14: 1362 | I14: 400 | K14: =SUM(H14:J14) -> 1762
A15: 24 | B15: 1881 | C15: OLYMPIAS LINEAGE | F15: HEADLEY; SHELTON M | G15: 17.132 | H15: 908 | K15: =SUM(H15:J15) -> 908
A16: 41 | B16: 1845 | C16: LETS GO MOON | F16: GUTFRANSKI; LEXI K | G16: 17.144
A17: 51 | B17: 1710 | C17: PACKIN TREASURES | F17: SHAW; SHERREE | G17: 17.155
A18: 14 | B18: 1134 | C18: VOLTAGE | F18: REEDER; BRANDI R | G18: 17.202
A19: 77 | B19: 1197 | C19: STARLIGHT REMEDY | F19: CLARK; CHLOE | G19: 17.217
A20: 53 | B20: 1080 | C20: RGB REBA | D20: TX | F20: REDDMANN; LINDSEY | G20: 17.222 | I20: 250 | K20: =SUM(I20:J20) -> 250
A21: 16 | B21: 1307 | C21: CRUISERS DOLL | F21: SULLIVAN; RAYCEE L | G21: 17.237
A22: 19 | B22: 1237 | C22: KENTUCKYS BEEN MOONED | F22: MIER; MEGAN | G22: 17.268
A23: 11 | B23: 1168 | C23: EXTREME CHICO | F23: HERRING; DR JILL A | G23: 17.312
A24: 26 | B24: 1161 | C24: LMF CHROMEONMYCOWBOY | F24: WEYH; LEANN | G24: 17.345
A25: 9 | B25: 1541 | C25: HEAVYWEIGHT CONTENDER | F25: CARTER-RATLIFF; SHIANNA | G25: 17.347
A26: 38 | B26: 1198 | C26: KIM KAR DASHIN | F26: CLARK; AMANDA | G26: 17.352
A27: 55 | B27: 1741 | C27: SCOOTERS ELEGANCE | F27: WELDON; PAISLEY JEAN | G27: 17.355
A28: 17 | B28: 1229 | C28: BAILEYS POWER BREEZE | F28: ORSTAD; PAIGE | G28: 17.371
A29: 1 | B29: 1505 | C29: RJM SHINE ON ME | D29: TX | F29: ELLIOT; SHAYLEY | G29: 17.381 | I29: 200 | K29: =SUM(I29:J29) -> 200
A30: 5 | B30: 1140 | C30: BART PROMISED SPOTS | F30: FLESHMAN; KRISTIE BRATTEN | G30: 17.395
A31: 15 | B31: 2262 | C31: BABYSFAMOUSMILKSHAKE | F31: HARRINGTON; WILL | G31: 17.398
A32: 65 | B32: 1145 | C32: FAMOUS FRENCH PISTOL | F32: FARMER; JORDAN | G32: 17.483
A33: 66 | B33: 1106 | C33: KALLIE GOLDSEEKER | F33: COLE; CONNOR KC | G33: 17.483
A34: 67 | B34: 1246 | C34: IMA FAMOUS GAMBLER | D34: TX | F34: BURNS; NICOLE | G34: 17.515 | I34: 200 | K34: =SUM(I34:J34) -> 200
A35: 3 | B35: 1905 | C35: WEST TEXAS PUMP JACK | F35: CASTRO-DELANOE; MICHAELA | G35: 17.52 | H35: 2539.2 | K35: =SUM(H35:J35) -> 2539.2
A36: 20 | B36: 1607 | C36: COMPROMISED PERKS | D36: TX | F36: CAIN; NIKKI A | G36: 17.522 | H36: 2116 | K36: =SUM(H36:J36) -> 2116
A37: 25 | B37: 1832 | C37: SPOT ON FAMOUS | F37: MCAULEY; SUMMER | G37: 17.579 | H37: 1692.8 | K37: =SUM(H37:J37) -> 1692.8
A38: 49 | B38: 1928 | C38: JUST ANOTHERSTREAK | F38: HANCOCK; KAREN | G38: 17.59 | H38: 1269.6 | K38: =SUM(H38:J38) -> 1269.6
A39: 46 | B39: 2103 | C39: GITTER DUN TURNPIKE | F39: LELEUX; KYLE | G39: 17.68 | H39: 846.4 | K39: =SUM(H39:J39) -> 846.4
A40: 61 | B40: 1569 | C40: KN FLASHY N FABULOUS | D40: TX | F40: HOOPER; BRANDY ROBINSON | G40: 17.731 | I40: 200 | K40: =SUM(I40:J40) -> 200
A41: 21 | B41: 1723 | C41: SAM CARDINALE | F41: HUDSON; ALTON G | G41: 17.745
A42: 76 | B42: 1739 | C42: A SHARPER CARDINALE | F42: HUDSON; ALTON G | G42: 17.751
A43: 73 | B43: 1722 | C43: BEYOND DIAMONDS | F43: ZELDENTHUIS; JOHN R | G43: 17.752
A44: 31 | B44: 1403 | C44: PT FAMOUS NICK | F44: KENDALL; LOUISE | G44: 17.843
A45: 35 | B45: 2263 | C45: JET STREAKIN | F45: JOHNSON; BRITTANI | G45: 17.997
A46: 70 | B46: 2100 | C46: OH BROTHER TEX | F46: MUIR; WENDY | G46: 18.062 | H46: 2354.4 | K46: =SUM(H46:J46) -> 2354.4
A47: 47 | B47: 1763 | C47: FLYING NUN | F47: HENRY; BRIAN D | G47: 18.124 | H47: 1962.6 | K47: =SUM(H47:J47) -> 1962.6
A48: 81 | B48: 1692 | C48: IMAREALLADIESMAN | D48: TX | F48: GIBBS; MARY | G48: 18.153 | H48: 1569.6 | I48: 200 | K48: =SUM(H48:J48) -> 1769.6
A49: 80 | B49: 1206 | C49: STOLIN EMBRACE | F49: HOBBIE; KATELYN | G49: 18.172 | H49: 1177.2 | K49: =SUM(H49:J49) -> 1177.2
A50: 56 | B50: 1103 | C50: A TRU CHOCOLATE | F50: SIMS; SARAH | G50: 18.214 | H50: 784.8 | K50: =SUM(H50:J50) -> 784.8
A51: 39 | B51: 1190 | C51: ZIPPIN CLINTON CUERVO | F51: CLAY; JENNIFER M | G51: 18.22
A52: 40 | B52: 1153 | C52: LKW EYES ON THE WIN | F52: HITE-TUCKER; PAULA D | G52: 18.356
A53: 4 | B53: 1583 | C53: DOUBLE SPLASH OF FLIT | D53: TX | F53: HENDERSON; SAWYER | G53: 18.362
A54: 12 | B54: 1133 | C54: LS DOUBLE JEOPARDY | D54: TX | F54: YOHE; BECKIE | G54: 18.369
A55: 7 | B55: 2102 | C55: KITS TEXAS TAXI | D55: TX | F55: WOLF; CANDICE B | G55: 18.387
A56: 27 | B56: 1086 | C56: THIS GIRLS A GOLDCOIN | F56: WILLMON; LINDSI | G56: 18.507
A57: 13 | B57: 1896 | C57: PCR LOVEPOTIONNUMNINE | F57: SUMMERS; DEBBIE K | G57: 18.509
A58: 28 | B58: 1217 | C58: SHAKEM TILL YA FAMOUS | D58: TX | E58: FUT | F58: MCCAY; BRIANNA | G58: 18.517 | J58: 1272 | K58: =SUM(J58) -> 1272
A59: 57 | B59: 2022 | C59: ON THE MAGNOLIA RED | D59: TX | E59: FUT | F59: MONGELLUZZO; JOANNA | G59: 18.519 | H59: 2169 | J59: 848 | K59: =SUM(H59:J59) -> 3017
A60: 72 | B60: 1615 | C60: SQH CAPPUCCINO | F60: WALTERS; JESSICA C | G60: 18.705 | H60: 1808 | K60: =SUM(H60:J60) -> 1808
A61: 52 | B61: 1132 | C61: LS IM NO BULLY | D61: TX | F61: YOHE; BECKIE | G61: 18.71 | H61: 1446.4 | K61: =SUM(H61:J61) -> 1446.4
A62: 43 | B62: 1795 | C62: NATIVES WESTERN MONEY | F62: VERDIN; MANDY | G62: 18.846 | H62: 1084.8 | K62: =SUM(H62:J62) -> 1084.8
A63: 58 | B63: 1601 | C63: COLORD BY CASH | F63: WALKER; TAMMY L | G63: 18.85 | H63: 723.2 | K63: =SUM(H63:J63) -> 723.2
A64: 44 | B64: 1808 | C64: STREAK FREE ZONE | F64: HEADLEY; DAVID | G64: 19.334
A65: 54 | B65: 1053 | C65: RGB PRINCESS GOLD | F65: DICKSON; KENDAL LOU | G65: 19.769
A66: 45 | B66: 1200 | C66: DASHIN BARTENDER | F66: GORDON; KATEY | G66: 20.156
A67: 64 | B67: 1402 | C67: SHEZA BRICK STAR | F67: THETFORD; KIMBERLIE DYKES | G67: 21.132
A68: 8 | B68: 1041 | C68: SHF DOLLS KISS | F68: GLEMBA; KRISTEN | G68: 9999.99
A69: 10 | B69: 1400 | C69: RKM GAMBLE ON FAME | F69: OGDEN; LISA | G69: 9999.99
A70: 22 | B70: 1383 | C70: DOLLS STING | D70: TX | F70: TRAUTNER; STEPHANIE | G70: 9999.99
A71: 23 | B71: 2265 | C71: TURNPIKERS WAGON | F71: JOHNSON; BRITTANI | G71: 9999.99
A72: 29 | B72: 1650 | C72: IMSTREAKINFORCASH | D72: TX | F72: BAUMANN; SHAYLEE | G72: 9999.99
A73: 36 | B73: 1788 | C73: SLICK SPIRIT N FRILLS | D73: TX | F73: SILVERS; MELISSA | G73: 9999.99
A74: 37 | B74: 1042 | C74: VINTAGE JUDY | F74: GLEMBA; KRISTEN | G74: 9999.99
A75: 59 | B75: 1067 | C75: HEZ ONE SLICK FLING | E75: FUT | F75: RAASCH; MELINDA | G75: 9999.99
A76: 63 | B76: 1837 | C76: LINDA STINSON | E76: FUT | F76: HEADLEY; SHELTON M | G76: 9999.99
A77: 68 | B77: 1401 | C77: MISS GOODYEAR | D77: TX | F77: COCKRELL; KIMBERLY | G77: 9999.99
A78: 69 | B78: 1514 | C78: DO HE DO WHITE | F78: SCHNUCK; HALEY | G78: 9999.99
A79: 71 | B79: 1844 | C79: COUNTRY QUICK HEROINE | F79: KEITH; KAYLA | G79: 9999.99
A80: 78 | B80: 1689 | C80: RR JET STREAKIN SKYE | D80: TX | E80: FUT | F80: RANDLE; ROBIN | G80: 9999.99
A81: 82 | B81: 1585 | C81: CONVINCING THE MOON | D81: TX | F81: WILSON; MIA | G81: 9999.99
A82: 34 | B82: 1726 | C82: SMOKIN EM SPOTLESS | F82: LUCERO DVM; PAUL ANN | G82: 9999.99
A83: 18 | B83: 1646 | C83: TOKEN TA FAME | F83: STATON; ERIN | G83: SCRATCHED
A84: 33 | B84: 1450 | C84: GENUINE HONEY | D84: TX | F84: MCREYNOLDS; JUDY L | G84: SCRATCHED
A85: 74 | B85: 1666 | C85: SASSYS FLICKA | D85: TX | F85: TYLER; KIMBERLY | G85: SCRATCHED
B86: 1779 | C86: A B B BRILEY | F86: CURRAN; KYLEY | G86: SCRATCHED
B87: 1712 | C87: A SMART SUGAR BARBI | F87: CURRAN; KYLEY | G87: SCRATCHED
B88: 1248 | C88: ARIZONA CACTUS | F88: MCCARTHY; TEREA | G88: SCRATCHED
B89: 1620 | C89: MS GEM BOB FOXIE | F89: DAVIS; CHEYENNE | G89: SCRATCHED
B90: 1045 | C90: ROGUE CASH ACCOUNT | F90: SCHUBERT; DANIELLE N
F91: TOTAL | H91: =SUM(H3:H90) -> 42320 | I91: =SUM(I4:I90) -> 5000 | J91: =SUM(J3:J90) -> 5300 | K91: =SUM(K3:K89) -> 52620

Sheet 4&5 FUTURITY
B1: 2022 PBRIP 4 & 5 Year-Old Futurity
A2: DRAW # | B2: HORSE | C2: RIDER | D2: TIME | E2: PLACE | F2: EARNINGS
A3: 2 | B3: HINDSIGHT | C3: JOHNSON; BRITTANI | D3: 16.765 | E3: 1D-1 | F3: 3180 | H3: 1D-1st Place: $1,908
A4: 28 | B4: SHAKEM TILL YA FAMOUS | C4: MCCAY; BRIANNA | D4: 18.517 | E4: 2D-1 | F4: 1272 | H4: 1D-2nd Place: $1,272
A5: 57 | B5: ON THE MAGNOLIA RED | C5: MONGELLUZZO; JOANNA | D5: 18.519 | E5: 2D-2 | F5: 848
A6: 78 | B6: RR JET STREAKIN SKYE | C6: RANDLE; ROBIN | D6: 999.99 | H6: 2D-1st Place $1,272
A7: 63 | B7: LINDA STINSON | C7: HEADLEY; SHELTON M | D7: 999.999 | H7: 2D-2nd Place: $848
A8: 59 | B8: HEZ ONE SLICK FLING | C8: RAASCH; MELINDA | D8: 9999.99
C11: TOTAL | F11: =SUM(F3:F7) -> 5300

Sheet TX BRED
C1: 2022 PBRIP SWEEPSTAKES - TX BRED
A2: DRAW # | C2: HORSE | D2: TX | E2: RIDER | F2: TIME | G2: EARNINGS
A3: 1 | C3: HINDSIGHT | E3: JOHNSON; BRITTANI | F3: 16.765 | G3: 1250
A4: 2 | C4: GUYKO | E4: PIERSON; BRITTANY | F4: 16.875 | G4: 1000
A5: 4 | C5: SMART WITH CASH | E5: TYRER; MIRANDA | F5: 17.006 | G5: 750
A6: 7 | C6: EPIC STREAKER | E6: HOOPER; BRANDY ROBINSON | F6: 17.065 | G6: 550
A7: 12 | C7: DASH OF HOPE | E7: CLARY; JAYLAN R | F7: 17.086 | G7: 400
A8: 20 | C8: RGB REBA | E8: REDDMANN; LINDSEY | F8: 17.222 | G8: 250
A9: 22 | C9: RJM SHINE ON ME | E9: ELLIOT; SHAYLEY | F9: 17.381 | G9: 200
A10: 28 | C10: IMA FAMOUS GAMBLER | E10: BURNS; NICOLE | F10: 17.515 | G10: 200
A11: 29 | C11: COMPROMISED PERKS | E11: CAIN; NIKKI A | F11: 17.522 | G11: 200
A12: 32 | C12: KN FLASHY N FABULOUS | E12: HOOPER; BRANDY ROBINSON | F12: 17.731 | G12: 200
A13: 33 | C13: IMAREALLADIESMAN | E13: GIBBS; MARY | F13: 18.153
A14: 38 | C14: DOUBLE SPLASH OF FLIT | E14: HENDERSON; SAWYER | F14: 18.362
A15: 48 | C15: LS DOUBLE JEOPARDY | E15: YOHE; BECKIE | F15: 18.369
A16: 52 | C16: KITS TEXAS TAXI | E16: WOLF; CANDICE B | F16: 18.387
A17: 53 | C17: SHAKEM TILL YA FAMOUS | E17: MCCAY; BRIANNA | F17: 18.517
A18: 57 | C18: ON THE MAGNOLIA RED | E18: MONGELLUZZO; JOANNA | F18: 18.519
A19: 61 | C19: LS IM NO BULLY | E19: YOHE; BECKIE | F19: 18.71
A20: 62 | C20: RR JET STREAKIN SKYE | E20: RANDLE; ROBIN | F20: 999.99
A21: 67 | C21: DOLLS STING | E21: TRAUTNER; STEPHANIE | F21: 9999.99
A22: 68 | C22: IMSTREAKINFORCASH | E22: BAUMANN; SHAYLEE | F22: 9999.99
A23: 74 | C23: SLICK SPIRIT N FRILLS | E23: SILVERS; MELISSA | F23: 9999.99
A24: 75 | C24: MISS GOODYEAR | E24: COCKRELL; KIMBERLY | F24: 9999.99
A25: 78 | C25: CONVINCING THE MOON | E25: WILSON; MIA | F25: 9999.99
A26: 81 | C26: GENUINE HONEY | E26: MCREYNOLDS; JUDY L | F26: SCRATCHED
A27: 82 | C27: SASSYS FLICKA | E27: TYLER; KIMBERLY | F27: SCRATCHED
C28: ROGUE CASH ACCOUNT | E28: SCHUBERT; DANIELLE N | F28: Scratched
G29: =SUM(G3:G28) -> 5000

Sheet YOUTH
C1: 2022 PBRIP SWEEPSTAKES - YOUTH SIDEPOT
A2: DRAW # | B2: HORSE | C2: RIDER | D2: TIME | E2: PAYOUT
B3: HEAVYWEIGHT CONTENDER | C3: CARTER-RATLIFF; SHIANNA | D3: 17.085 | E3: 450
B4: SCOOTERS ELEGANCE | C4: WELDON; PAISLEY JEAN | D4: 18.4 | E4: 350
B5: SQH CAPPUCCINO | C5: WALTERS; JESSICA C | D5: 18.434 | E5: 200
B6: A TRU CHOCOLATE | C6: SIMS; SARAH | D6: 19.032 | E6: 0
